[Event "Live Chess"]
[Site "Chess.com"]
[Date "2023.05.20"]
[Round "-"]
[White "alanmike75"]
[Black "KajusM"]
[Result "1/2-1/2"]
[WhiteElo "1518"]
[BlackElo "2276"]
[TimeControl "300"]
[EndTime "12:15:21 PDT"]
[Termination "Game drawn by repetition"]

1. e4 {[%clk 0:04:57.5]} 1... d5 {[%clk 0:04:58.3]} 2. exd5 {[%clk 0:04:56]}
2... Nf6 {[%clk 0:04:58]} 3. d4 {[%clk 0:04:54]} 3... Bg4 {[%clk 0:04:56.7]} 4.
Nf3 {[%clk 0:04:51.8]} 4... Qxd5 {[%clk 0:04:55.2]} 5. Be2 {[%clk 0:04:50.7]}
5... Nc6 {[%clk 0:04:53.6]} 6. c3 {[%clk 0:04:48.6]} 6... O-O-O {[%clk 0:04:53]}
7. O-O {[%clk 0:04:47.3]} 7... e6 {[%clk 0:04:49.9]} 8. Qb3 {[%clk 0:04:41.1]}
8... Bd6 {[%clk 0:04:48.1]} 9. Qxd5 {[%clk 0:04:39.2]} 9... exd5 {[%clk
0:04:48]} 10. Bg5 {[%clk 0:04:36.6]} 10... Rhe8 {[%clk 0:04:46]} 11. Bd1 {[%clk
0:04:17.4]} 11... h6 {[%clk 0:04:42.2]} 12. Bxf6 {[%clk 0:04:15.7]} 12... gxf6
{[%clk 0:04:42.1]} 13. Nbd2 {[%clk 0:04:14.4]} 13... Re7 {[%clk 0:04:39.2]} 14.
Bb3 {[%clk 0:04:12]} 14... Bf4 {[%clk 0:04:35.2]} 15. Rfe1 {[%clk 0:04:06.9]}
15... Be6 {[%clk 0:04:31.4]} 16. g3 {[%clk 0:04:02.1]} 16... Bg5 {[%clk
0:04:27.7]} 17. Nxg5 {[%clk 0:03:59]} 17... fxg5 {[%clk 0:04:27.6]} 18. Nf3
{[%clk 0:03:54.9]} 18... Rde8 {[%clk 0:04:23.9]} 19. Ne5 {[%clk 0:03:52.9]}
19... Nxe5 {[%clk 0:04:22.3]} 20. Rxe5 {[%clk 0:03:51.5]} 20... c6 {[%clk
0:04:21.2]} 21. Rae1 {[%clk 0:03:49.9]} 21... Kd7 {[%clk 0:04:19.5]} 22. Bc2
{[%clk 0:03:45.6]} 22... f6 {[%clk 0:04:17.9]} 23. R5e3 {[%clk 0:03:42.2]} 23...
Kd6 {[%clk 0:04:09.1]} 24. Bg6 {[%clk 0:03:38.9]} 24... Rg8 {[%clk 0:03:58.4]}
25. Bf5 {[%clk 0:03:36]} 25... Rge8 {[%clk 0:03:54.8]} 26. Bg6 {[%clk
0:03:34.8]} 26... Rf8 {[%clk 0:03:25.3]} 27. Bf5 {[%clk 0:03:33.1]} 27... Bxf5
{[%clk 0:03:18.2]} 28. Rxe7 {[%clk 0:03:31.4]} 28... Bd7 {[%clk 0:03:15.7]} 29.
R7e3 {[%clk 0:03:29.2]} 29... Rf7 {[%clk 0:03:13.6]} 30. f3 {[%clk 0:03:26.9]}
30... b5 {[%clk 0:03:11.2]} 31. a3 {[%clk 0:03:25.2]} 31... h5 {[%clk
0:03:08.5]} 32. Kf2 {[%clk 0:03:23.8]} 32... h4 {[%clk 0:03:06.3]} 33. g4 {[%clk
0:03:19.3]} 33... f5 {[%clk 0:03:05.5]} 34. Kg2 {[%clk 0:03:15]} 34... fxg4
{[%clk 0:03:04.3]} 35. fxg4 {[%clk 0:03:12.1]} 35... Bxg4 {[%clk 0:03:02.4]} 36.
h3 {[%clk 0:03:08.6]} 36... Bf5 {[%clk 0:02:58.1]} 37. Kh2 {[%clk 0:03:04.2]}
37... Be4 {[%clk 0:02:56.9]} 38. R3e2 {[%clk 0:03:00.2]} 38... Rf3 {[%clk
0:02:53.6]} 39. Rg1 {[%clk 0:02:57.1]} 39... Rf5 {[%clk 0:02:52.3]} 40. Rd2
{[%clk 0:02:47.8]} 40... c5 {[%clk 0:02:49.4]} 41. dxc5+ {[%clk 0:02:46]} 41...
Kxc5 {[%clk 0:02:49.3]} 42. b3 {[%clk 0:02:33.9]} 42... a5 {[%clk 0:02:46.9]}
43. Rc1 {[%clk 0:02:23.8]} 43... Kd6 {[%clk 0:02:43.2]} 44. Re1 {[%clk
0:02:20.6]} 44... Ke5 {[%clk 0:02:41.6]} 45. c4 {[%clk 0:02:16.1]} 45... bxc4
{[%clk 0:02:40]} 46. bxc4 {[%clk 0:02:15]} 46... dxc4 {[%clk 0:02:39.7]} 47. Re3
{[%clk 0:02:03.7]} 47... Rf3 {[%clk 0:02:37]} 48. Rde2 {[%clk 0:01:58.5]} 48...
Rxe3 {[%clk 0:02:35.5]} 49. Rxe3 {[%clk 0:01:57.3]} 49... Kd4 {[%clk 0:02:35.3]}
50. Re1 {[%clk 0:01:52.5]} 50... c3 {[%clk 0:02:35.2]} 51. Kg1 {[%clk 0:01:49]}
51... Kd3 {[%clk 0:02:32.6]} 52. Kf2 {[%clk 0:01:48.1]} 52... c2 {[%clk
0:02:30.8]} 53. Re3+ {[%clk 0:01:43]} 53... Kd2 {[%clk 0:02:29.2]} 54. Re2+
{[%clk 0:01:41.6]} 54... Kd3 {[%clk 0:02:24.2]} 55. Re3+ {[%clk 0:01:40.2]}
55... Kd2 {[%clk 0:02:06.8]} 56. Re2+ {[%clk 0:01:38.9]} 56... Kd1 {[%clk
0:02:06.5]} 57. Re1+ {[%clk 0:01:37.2]} 57... Kd2 {[%clk 0:02:04.9]} 58. Re2+
{[%clk 0:01:36.4]} 1/2-1/2

[Event "Live Chess"]
[Site "Chess.com"]
[Date "2023.05.20"]
[Round "-"]
[White "chessfiction"]
[Black "ameetghasi100"]
[Result "0-1"]
[WhiteElo "2409"]
[BlackElo "2711"]
[TimeControl "300"]
[EndTime "12:15:21 PDT"]
[Termination "ameetghasi100 won by resignation"]

1. e4 {[%clk 0:04:59.8]} 1... c5 {[%clk 0:04:59.7]} 2. d4 {[%clk 0:04:58.7]}
2... cxd4 {[%clk 0:04:58.4]} 3. c3 {[%clk 0:04:57.5]} 3... dxc3 {[%clk
0:04:57.1]} 4. Nxc3 {[%clk 0:04:57.4]} 4... e6 {[%clk 0:04:56.1]} 5. Nf3 {[%clk
0:04:56.1]} 5... a6 {[%clk 0:04:55.7]} 6. Bd3 {[%clk 0:04:54.4]} 6... Nc6 {[%clk
0:04:55.3]} 7. e5 {[%clk 0:04:53.2]} 7... Nge7 {[%clk 0:04:54]} 8. Bg5 {[%clk
0:04:52.1]} 8... Qc7 {[%clk 0:04:52.5]} 9. Ne4 {[%clk 0:04:51.2]} 9... Nd5
{[%clk 0:04:46.4]} 10. O-O {[%clk 0:04:46.5]} 10... Nxe5 {[%clk 0:04:44.6]} 11.
Nxe5 {[%clk 0:04:44.7]} 11... Qxe5 {[%clk 0:04:44.5]} 12. Re1 {[%clk 0:04:43.8]}
12... Qd4 {[%clk 0:04:30.8]} 13. Rc1 {[%clk 0:04:33]} 13... Nb4 {[%clk 0:04:25]}
14. Rc3 {[%clk 0:04:11.2]} 14... Nc6 {[%clk 0:04:10.5]} 15. Qh5 {[%clk
0:04:00.5]} 15... d5 {[%clk 0:03:59.2]} 16. Ng3 {[%clk 0:03:52.5]} 16... Bb4
{[%clk 0:03:46]} 17. Nf5 {[%clk 0:03:41.5]} 17... g6 {[%clk 0:03:27.3]} 18. Nxd4
{[%clk 0:03:34.6]} 18... gxh5 {[%clk 0:03:24.9]} 19. Nxc6 {[%clk 0:03:26.9]}
19... bxc6 {[%clk 0:03:24.1]} 20. Bf6 {[%clk 0:03:21.3]} 20... Bxc3 {[%clk
0:03:19.5]} 21. bxc3 {[%clk 0:03:16.4]} 21... Rg8 {[%clk 0:03:15.2]} 22. h3
{[%clk 0:03:09]} 22... Rb8 {[%clk 0:03:07.3]} 23. Bxh7 {[%clk 0:03:07.6]} 23...
Rf8 {[%clk 0:03:06.4]} 24. g4 {[%clk 0:02:47.1]} 24... hxg4 {[%clk 0:03:04]} 25.
hxg4 {[%clk 0:02:47]} 25... a5 {[%clk 0:02:56.9]} 26. g5 {[%clk 0:02:46.3]}
26... a4 {[%clk 0:02:52.6]} 27. Bc2 {[%clk 0:02:29]} 27... a3 {[%clk 0:02:48.7]}
28. f4 {[%clk 0:02:26.3]} 28... Rb2 {[%clk 0:02:45.2]} 29. Bb3 {[%clk
0:02:25.1]} 29... Ba6 {[%clk 0:02:32.6]} 30. f5 {[%clk 0:02:16.1]} 30... Kd7
{[%clk 0:02:31.3]} 31. g6 {[%clk 0:02:11.3]} 31... fxg6 {[%clk 0:02:28.2]} 32.
fxe6+ {[%clk 0:02:06.4]} 32... Ke8 {[%clk 0:02:27.4]} 33. Bh4 {[%clk 0:01:52.3]}
33... Rf4 {[%clk 0:02:18.5]} 34. Bg3 {[%clk 0:01:40.9]} 34... Rg4 {[%clk
0:02:16.7]} 35. Re3 {[%clk 0:01:40.7]} 35... Rxb3 {[%clk 0:02:10.6]} 36. axb3
{[%clk 0:01:39.3]} 36... a2 {[%clk 0:02:10.1]} 0-1

[Event "Live Chess"]
[Site "Chess.com"]
[Date "2023.05.20"]
[Round "-"]
[White "smoggyrabbit"]
[Black "Richardallis"]
[Result "1-0"]
[WhiteElo "1647"]
[BlackElo "1733"]
[TimeControl "300"]
[EndTime "12:15:25 PDT"]
[Termination "smoggyrabbit won by resignation"]

1. d4 {[%clk 0:04:59.7]} 1... c5 {[%clk 0:04:58.8]} 2. d5 {[%clk 0:04:55]} 2...
d6 {[%clk 0:04:57.7]} 3. Nf3 {[%clk 0:04:51]} 3... e5 {[%clk 0:04:56.9]} 4. e4
{[%clk 0:04:30.5]} 4... a6 {[%clk 0:04:55.3]} 5. Nc3 {[%clk 0:04:26.4]} 5... b5
{[%clk 0:04:54]} 6. a3 {[%clk 0:04:17.8]} 6... f5 {[%clk 0:04:52.8]} 7. exf5
{[%clk 0:04:03.7]} 7... Bxf5 {[%clk 0:04:50.5]} 8. Bd3 {[%clk 0:04:02.9]} 8...
Bxd3 {[%clk 0:04:48.3]} 9. Qxd3 {[%clk 0:04:01.5]} 9... Nf6 {[%clk 0:04:44.7]}
10. Bg5 {[%clk 0:03:58]} 10... Be7 {[%clk 0:04:43.2]} 11. Bxf6 {[%clk
0:03:55.5]} 11... Bxf6 {[%clk 0:04:42.6]} 12. Ne4 {[%clk 0:03:54.5]} 12... O-O
{[%clk 0:04:41.2]} 13. O-O {[%clk 0:03:42.9]} 13... Be7 {[%clk 0:04:38.9]} 14.
c4 {[%clk 0:03:41.5]} 14... Qd7 {[%clk 0:04:35.3]} 15. Neg5 {[%clk 0:03:30.9]}
15... Rf4 {[%clk 0:04:30.6]} 16. Qxh7+ {[%clk 0:03:27.8]} 1-0

[Event "Live Chess"]
[Site "Chess.com"]
[Date "2023.05.20"]
[Round "-"]
[White "OSmith06"]
[Black "HoarseyHorsey"]
[Result "0-1"]
[WhiteElo "1670"]
[BlackElo "1404"]
[TimeControl "300"]
[EndTime "12:15:41 PDT"]
[Termination "HoarseyHorsey won - game abandoned"]

1. e4 {[%clk 0:04:57.2]} 1... c5 {[%clk 0:04:58.3]} 2. Nf3 {[%clk 0:04:55.7]}
2... e6 {[%clk 0:04:56.6]} 3. d4 {[%clk 0:04:53.1]} 3... cxd4 {[%clk 0:04:55.4]}
4. Nxd4 {[%clk 0:04:53]} 4... Nf6 {[%clk 0:04:54.4]} 5. Nc3 {[%clk 0:04:51.3]}
5... Nc6 {[%clk 0:04:53.7]} 6. Be3 {[%clk 0:04:49.2]} 6... Bb4 {[%clk
0:04:51.9]} 7. f3 {[%clk 0:04:41.1]} 7... d5 {[%clk 0:04:50.2]} 8. exd5 {[%clk
0:04:33.2]} 8... exd5 {[%clk 0:04:50.1]} 9. Qd2 {[%clk 0:04:27.2]} 9... O-O
{[%clk 0:04:46.2]} 10. O-O-O {[%clk 0:04:21.7]} 10... Re8 {[%clk 0:04:28.8]} 11.
g4 {[%clk 0:04:11.2]} 11... Bxc3 {[%clk 0:04:10.7]} 12. Qxc3 {[%clk 0:04:07.5]}
12... Qe7 {[%clk 0:04:07.1]} 13. Re1 {[%clk 0:03:50.3]} 13... Be6 {[%clk
0:03:59.1]} 14. Bg2 {[%clk 0:03:47.3]} 14... Rac8 {[%clk 0:03:48.6]} 15. Nxe6
{[%clk 0:03:46.3]} 15... Qxe6 {[%clk 0:03:44]} 16. Bg5 {[%clk 0:03:36]} 16...
Qd6 {[%clk 0:03:37.6]} 17. Bxf6 {[%clk 0:03:29.6]} 17... d4 {[%clk 0:03:18.2]}
18. Rxe8+ {[%clk 0:03:25.1]} 18... Rxe8 {[%clk 0:03:18.1]} 19. Bxd4 {[%clk
0:03:15.3]} 19... Qxd4 {[%clk 0:03:14.3]} 20. Qxd4 {[%clk 0:03:11.2]} 20... Nxd4
{[%clk 0:03:14.2]} 21. c3 {[%clk 0:02:55.1]} 21... Ne2+ {[%clk 0:03:08.5]} 22.
Kd2 {[%clk 0:02:53.1]} 22... Nf4 {[%clk 0:03:07.5]} 23. Bf1 {[%clk 0:02:45.4]}
23... b6 {[%clk 0:02:57.7]} 24. Bb5 {[%clk 0:02:36.9]} 24... Re5 {[%clk
0:02:50.2]} 25. Re1 {[%clk 0:02:31.2]} 25... Rxe1 {[%clk 0:02:47.2]} 26. Kxe1
{[%clk 0:02:31.1]} 26... Kf8 {[%clk 0:02:44]} 27. Kf2 {[%clk 0:02:27.9]} 27...
Ke7 {[%clk 0:02:42.3]} 28. Ke3 {[%clk 0:02:25.4]} 28... Ne6 {[%clk 0:02:39.9]}
29. Bc4 {[%clk 0:02:19.9]} 29... Nc7 {[%clk 0:02:32.3]} 30. a4 {[%clk
0:02:17.3]} 30... h6 {[%clk 0:02:19.6]} 0-1

[Event "Live Chess"]
[Site "Chess.com"]
[Date "2023.05.20"]
[Round "-"]
[White "jameskwong"]
[Black "Pablo_dmp"]
[Result "1-0"]
[WhiteElo "2144"]
[BlackElo "1864"]
[TimeControl "300"]
[EndTime "12:15:44 PDT"]
[Termination "jameskwong won by resignation"]

1. d4 {[%clk 0:04:57.7]} 1... d5 {[%clk 0:04:58.6]} 2. c4 {[%clk 0:04:53.1]}
2... e6 {[%clk 0:04:57.7]} 3. Nc3 {[%clk 0:04:51.5]} 3... a6 {[%clk 0:04:57.1]}
4. Nf3 {[%clk 0:04:48.7]} 4... dxc4 {[%clk 0:04:54.4]} 5. a4 {[%clk 0:04:46.6]}
5... Nc6 {[%clk 0:04:50.6]} 6. e4 {[%clk 0:04:42.6]} 6... Na5 {[%clk 0:04:48.9]}
7. Be2 {[%clk 0:04:35.1]} 7... c5 {[%clk 0:04:42.1]} 8. d5 {[%clk 0:04:30.5]}
8... Nf6 {[%clk 0:04:38.5]} 9. O-O {[%clk 0:04:26.7]} 9... Be7 {[%clk
0:04:16.4]} 10. Bf4 {[%clk 0:04:22.1]} 10... O-O {[%clk 0:04:09.8]} 11. d6
{[%clk 0:04:18.4]} 11... Re8 {[%clk 0:04:02.1]} 12. dxe7 {[%clk 0:04:15.9]}
12... Qxe7 {[%clk 0:04:02]} 13. Bd6 {[%clk 0:04:10.3]} 13... Qd7 {[%clk
0:03:58.2]} 14. Ne5 {[%clk 0:03:57.2]} 14... Qd8 {[%clk 0:03:54.9]} 15. Bxc5
{[%clk 0:03:55.2]} 15... Qc7 {[%clk 0:03:49.1]} 16. Bd6 {[%clk 0:03:51.6]} 16...
Qb6 {[%clk 0:03:43.4]} 17. Nxc4 {[%clk 0:03:46.6]} 17... Nxc4 {[%clk 0:03:39.9]}
18. Bxc4 {[%clk 0:03:46.5]} 18... Rd8 {[%clk 0:03:39]} 19. e5 {[%clk 0:03:39.8]}
19... Nd7 {[%clk 0:03:34.7]} 20. Qe2 {[%clk 0:03:23.6]} 20... Nc5 {[%clk
0:03:28.4]} 21. Rfd1 {[%clk 0:03:14.9]} 1-0

[Event "Live Chess"]
[Site "Chess.com"]
[Date "2023.05.20"]
[Round "-"]
[White "Balu13"]
[Black "Lukaskonstanta4"]
[Result "0-1"]
[WhiteElo "824"]
[BlackElo "926"]
[TimeControl "300"]
[EndTime "12:15:45 PDT"]
[Termination "Lukaskonstanta4 won on time"]

1. e4 {[%clk 0:04:58.5]} 1... c5 {[%clk 0:04:51.1]} 2. f4 {[%clk 0:04:42.7]}
2... Nc6 {[%clk 0:04:47.1]} 3. c4 {[%clk 0:04:35.8]} 3... e6 {[%clk 0:04:36.1]}
4. Nf3 {[%clk 0:04:32.7]} 4... a6 {[%clk 0:04:24.8]} 5. d4 {[%clk 0:04:27.8]}
5... cxd4 {[%clk 0:04:22.8]} 6. g3 {[%clk 0:04:19.5]} 6... d6 {[%clk 0:03:56.1]}
7. Nxd4 {[%clk 0:04:17.9]} 7... Nf6 {[%clk 0:03:48]} 8. Nxc6 {[%clk 0:04:08.7]}
8... bxc6 {[%clk 0:03:46.2]} 9. c5 {[%clk 0:04:07.4]} 9... Qa5+ {[%clk
0:03:36.2]} 10. Nc3 {[%clk 0:03:23.3]} 10... Nxe4 {[%clk 0:03:30.2]} 11. cxd6
{[%clk 0:03:10.4]} 11... Nxc3 {[%clk 0:03:10.8]} 12. bxc3 {[%clk 0:03:03.6]}
12... Qxc3+ {[%clk 0:03:06.9]} 13. Bd2 {[%clk 0:03:03.5]} 13... Qc5 {[%clk
0:02:52.7]} 14. Bg2 {[%clk 0:02:03]} 14... Bxd6 {[%clk 0:02:41.2]} 15. Rc1
{[%clk 0:01:17.6]} 15... Qa7 {[%clk 0:01:35.7]} 16. Bxc6+ {[%clk 0:01:14.9]}
16... Bd7 {[%clk 0:01:32.6]} 17. Bxa8 {[%clk 0:01:12]} 17... Qxa8 {[%clk
0:01:31]} 18. O-O {[%clk 0:01:04.9]} 18... Qa7+ {[%clk 0:01:17.7]} 19. Kg2
{[%clk 0:01:01]} 19... O-O {[%clk 0:01:05.7]} 20. Bc3 {[%clk 0:00:29]} 20...
Bc6+ {[%clk 0:01:00.4]} 21. Kh3 {[%clk 0:00:26.5]} 21... Bb8 {[%clk 0:00:38.5]}
22. Qg4 {[%clk 0:00:19.5]} 22... f6 {[%clk 0:00:16.5]} 23. f5 {[%clk 0:00:17]}
23... exf5 {[%clk 0:00:12]} 24. Qxf5 {[%clk 0:00:14.9]} 24... Bd7 {[%clk
0:00:10]} 25. g4 {[%clk 0:00:06.4]} 25... Bxf5 {[%clk 0:00:07.7]} 26. Rxf5
{[%clk 0:00:06.3]} 26... Qe3+ {[%clk 0:00:03.8]} 27. Kh4 {[%clk 0:00:02.9]}
27... Qxc1 {[%clk 0:00:02.1]} 0-1

[Event "Live Chess"]
[Site "Chess.com"]
[Date "2023.05.20"]
[Round "-"]
[White "mpersander"]
[Black "whitedjohn"]
[Result "0-1"]
[WhiteElo "1000"]
[BlackElo "1663"]
[TimeControl "300"]
[EndTime "12:15:50 PDT"]
[Termination "whitedjohn won by checkmate"]

1. e4 {[%clk 0:04:49.4]} 1... Nf6 {[%clk 0:04:59.4]} 2. Nc3 {[%clk 0:04:37.9]}
2... d5 {[%clk 0:04:55.4]} 3. e5 {[%clk 0:04:35.5]} 3... Nfd7 {[%clk 0:04:54.2]}
4. d4 {[%clk 0:04:34.1]} 4... e6 {[%clk 0:04:53.6]} 5. Qf3 {[%clk 0:04:25.8]}
5... c5 {[%clk 0:04:52.4]} 6. Nxd5 {[%clk 0:04:22.1]} 6... exd5 {[%clk
0:04:48.4]} 7. Qxd5 {[%clk 0:04:20.9]} 7... cxd4 {[%clk 0:04:38.9]} 8. Qxd4
{[%clk 0:04:19.5]} 8... Nc6 {[%clk 0:04:36.3]} 9. f4 {[%clk 0:04:14.5]} 9...
Nxd4 {[%clk 0:04:33.1]} 10. Nf3 {[%clk 0:04:07.1]} 10... Nxc2+ {[%clk
0:04:29.5]} 11. Kd2 {[%clk 0:03:50]} 11... Nxe5+ {[%clk 0:04:27.8]} 12. Kxc2
{[%clk 0:03:44.2]} 12... Nxf3 {[%clk 0:04:26.5]} 13. gxf3 {[%clk 0:03:42.9]}
13... Qc7+ {[%clk 0:04:23.1]} 14. Kb1 {[%clk 0:03:41.4]} 14... Bf5+ {[%clk
0:04:21]} 15. Bd3 {[%clk 0:03:37.8]} 15... Bxd3# {[%clk 0:04:18.8]} 0-1

[Event "Live Chess"]
[Site "Chess.com"]
[Date "2023.05.20"]
[Round "-"]
[White "ChippyChill"]
[Black "Bot_Boy"]
[Result "1-0"]
[WhiteElo "836"]
[BlackElo "330"]
[TimeControl "300"]
[EndTime "12:16:00 PDT"]
[Termination "ChippyChill won on time"]

1. e4 {[%clk 0:04:54.6]} 1... d5 {[%clk 0:04:59]} 2. exd5 {[%clk 0:04:51.2]}
2... Qxd5 {[%clk 0:04:56.9]} 3. Nc3 {[%clk 0:04:50.2]} 3... Qd8 {[%clk
0:04:47.2]} 4. d4 {[%clk 0:04:45]} 4... c6 {[%clk 0:04:30]} 5. Bg5 {[%clk
0:04:27.6]} 5... h6 {[%clk 0:04:21.8]} 6. Bf4 {[%clk 0:04:24.5]} 6... g5 {[%clk
0:04:13.3]} 7. Bxb8 {[%clk 0:04:14.8]} 7... Rxb8 {[%clk 0:04:11.4]} 8. Bc4
{[%clk 0:04:02.6]} 8... Bf5 {[%clk 0:03:56.1]} 9. Nf3 {[%clk 0:03:55.2]} 9... b5
{[%clk 0:03:37.3]} 10. Bd3 {[%clk 0:03:37.2]} 10... Bxd3 {[%clk 0:03:27.1]} 11.
Qxd3 {[%clk 0:03:30.8]} 11... Qd7 {[%clk 0:02:55.3]} 12. O-O {[%clk 0:03:06.8]}
12... Rd8 {[%clk 0:02:30.9]} 13. Rae1 {[%clk 0:02:37.9]} 13... e6 {[%clk
0:02:20.1]} 14. Ne5 {[%clk 0:02:06.7]} 14... Qc7 {[%clk 0:02:08.3]} 15. Ng6
{[%clk 0:01:15.6]} 15... Rh7 {[%clk 0:01:46.8]} 16. Nxf8 {[%clk 0:01:08.5]}
16... Kxf8 {[%clk 0:01:28.6]} 17. Qxh7 {[%clk 0:01:04]} 17... Re8 {[%clk
0:01:11.5]} 18. Ne4 {[%clk 0:00:49.9]} 18... c5 {[%clk 0:00:38.8]} 19. dxc5
{[%clk 0:00:41.7]} 19... Qe7 {[%clk 0:00:16]} 20. Qh8 {[%clk 0:00:23.8]} 20...
f5 {[%clk 0:00:11.1]} 21. Re3 {[%clk 0:00:19.5]} 21... fxe4 {[%clk 0:00:09.6]}
22. Rxe4 {[%clk 0:00:17.6]} 22... Qf6 {[%clk 0:00:06.8]} 23. Qxf6+ {[%clk
0:00:15.5]} 23... Nxf6 {[%clk 0:00:04.8]} 24. Rd1 {[%clk 0:00:13.9]} 24... Nxe4
{[%clk 0:00:03.5]} 25. Rd7 {[%clk 0:00:09.7]} 25... Nxc5 {[%clk 0:00:01.2]} 26.
c3 {[%clk 0:00:08.1]} 1-0

[Event "Live Chess"]
[Site "Chess.com"]
[Date "2023.05.20"]
[Round "-"]
[White "ReceptiveCamel"]
[Black "MJMykh"]
[Result "1-0"]
[WhiteElo "672"]
[BlackElo "1041"]
[TimeControl "300"]
[EndTime "12:16:10 PDT"]
[Termination "ReceptiveCamel won by checkmate"]

1. e4 {[%clk 0:04:57.3]} 1... e5 {[%clk 0:04:58.5]} 2. Nf3 {[%clk 0:04:55.8]}
2... Nc6 {[%clk 0:04:57.1]} 3. Bb5 {[%clk 0:04:53.1]} 3... d6 {[%clk 0:04:55.6]}
4. Bxc6+ {[%clk 0:04:51.9]} 4... bxc6 {[%clk 0:04:53.5]} 5. d4 {[%clk
0:04:51.4]} 5... exd4 {[%clk 0:04:52.4]} 6. Qxd4 {[%clk 0:04:49.4]} 6... Nf6
{[%clk 0:04:50]} 7. Bg5 {[%clk 0:04:46.2]} 7... Be7 {[%clk 0:04:47.9]} 8. Nc3
{[%clk 0:04:43.5]} 8... O-O {[%clk 0:04:46.8]} 9. Bxf6 {[%clk 0:04:40.7]} 9...
Bxf6 {[%clk 0:04:45.8]} 10. Qe3 {[%clk 0:04:37.3]} 10... Bg4 {[%clk 0:04:43.1]}
11. h3 {[%clk 0:04:33.6]} 11... Bxf3 {[%clk 0:04:42.1]} 12. Qxf3 {[%clk
0:04:30.9]} 12... Bxc3+ {[%clk 0:04:41.6]} 13. Qxc3 {[%clk 0:04:28.6]} 13... c5
{[%clk 0:04:39.2]} 14. O-O-O {[%clk 0:04:25.1]} 14... Qe7 {[%clk 0:04:37]} 15.
Rd3 {[%clk 0:04:19.9]} 15... Qxe4 {[%clk 0:04:33.7]} 16. Rg3 {[%clk 0:04:18]}
16... g6 {[%clk 0:04:27.2]} 17. Re1 {[%clk 0:04:14.9]} 17... Qa4 {[%clk
0:04:18.2]} 18. b3 {[%clk 0:04:11.7]} 18... Qxa2 {[%clk 0:04:16.2]} 19. h4
{[%clk 0:03:58]} 19... Qa6 {[%clk 0:04:09.2]} 20. h5 {[%clk 0:03:56.2]} 20...
Qc6 {[%clk 0:04:02.6]} 21. hxg6 {[%clk 0:03:54.8]} 21... hxg6 {[%clk 0:03:52.1]}
22. Rh1 {[%clk 0:03:48.6]} 22... d5 {[%clk 0:03:29.6]} 23. Rh8# {[%clk
0:03:46.3]} 1-0

[Event "Live Chess"]
[Site "Chess.com"]
[Date "2023.05.20"]
[Round "-"]
[White "chessleanstrategist"]
[Black "kevinmilleruk"]
[Result "0-1"]
[WhiteElo "400"]
[BlackElo "1113"]
[TimeControl "300"]
[EndTime "12:16:17 PDT"]
[Termination "kevinmilleruk won by resignation"]

1. c4 {[%clk 0:04:59]} 1... e5 {[%clk 0:04:59.1]} 2. Nc3 {[%clk 0:04:52.5]} 2...
Nf6 {[%clk 0:04:57.3]} 3. g3 {[%clk 0:04:50.6]} 3... Bb4 {[%clk 0:04:56.5]} 4.
Bg2 {[%clk 0:04:48]} 4... d6 {[%clk 0:04:40.9]} 5. Nf3 {[%clk 0:04:44.4]} 5...
O-O {[%clk 0:04:38.3]} 6. O-O {[%clk 0:04:41.7]} 6... Bg4 {[%clk 0:04:37]} 7.
Qc2 {[%clk 0:04:26.4]} 7... Nc6 {[%clk 0:04:20.7]} 8. e3 {[%clk 0:04:08]} 8...
Bxf3 {[%clk 0:04:05.5]} 9. Bxf3 {[%clk 0:04:04.6]} 9... Bxc3 {[%clk 0:04:03.8]}
10. Qxc3 {[%clk 0:03:54.8]} 10... e4 {[%clk 0:04:01.1]} 11. Bg2 {[%clk
0:03:46.8]} 11... d5 {[%clk 0:03:52.6]} 12. b4 {[%clk 0:03:37.9]} 12... d4
{[%clk 0:03:47.9]} 13. Qb2 {[%clk 0:03:23.9]} 13... d3 {[%clk 0:03:44.7]} 14.
Qb1 {[%clk 0:02:51.7]} 14... Re8 {[%clk 0:03:36.8]} 15. Bb2 {[%clk 0:02:49.9]}
15... Ne5 {[%clk 0:03:24.4]} 16. f4 {[%clk 0:02:27.2]} 16... Nxc4 {[%clk
0:03:22.2]} 17. Bxf6 {[%clk 0:02:16.9]} 17... Qxf6 {[%clk 0:03:15.2]} 18. Qb3
{[%clk 0:02:06.1]} 18... Nxd2 {[%clk 0:03:11.5]} 19. Rfc1 {[%clk 0:02:04.3]}
19... Nxb3 {[%clk 0:03:09.9]} 20. axb3 {[%clk 0:02:02.1]} 20... d2 {[%clk
0:03:06.6]} 21. Rxc7 {[%clk 0:02:00.2]} 21... Qxa1+ {[%clk 0:03:03]} 0-1